lending/lending_fUSD_20250122
["ID","MTS","AMOUNT","RATE_DAILY","PERIOD"]
[349968474,1737540661435,-500.0,0.0002081,2]
[349968475,1737540661444,-500.0,0.0002081,2]
[349968476,1737540661455,-500.0,0.0002081,2]
[349968477,1737540661466,-801.82,0.0002081,2]
[349968478,1737540661475,-655.77,0.0002081,2]
[349968479,1737540661486,-995.94,0.0002081,2]
[349968480,1737540661495,-606.45,0.0002081,2]
[349968481,1737540661504,-1409.55,0.0002081,2]
[349968482,1737540661513,-716.96,0.0002081,2]
[349968483,1737540661523,-2078.36,0.0002081,2]
[349968484,1737540661533,-500.0,0.0002081,2]
[349968485,1737540661544,-1020.68,0.0002081,2]
[349968486,1737540661557,-1080.35,0.0002081,2]
[349968487,1737540661571,-500.0,0.0002081,2]
[349968488,1737540661581,-2030.39,0.0002081,2]
[349968489,1737540661591,-1601.2,0.0002081,2]
[349968490,1737540661601,-736.51,0.0002081,2]
[349968491,1737540661611,-1648.0,0.0002081,2]
[349968492,1737540661621,-500.0,0.0002081,2]
[349968493,1737540661631,-531.95341956,0.0002081,2]
[349968494,1737540661640,-619.35,0.0002081,2]
[349968495,1737540661650,-756.04,0.0002081,2]
[349968496,1737540661659,-1547.06,0.0002081,2]
[349968497,1737540661668,-1741.58,0.0002081,2]
[349968498,1737540661678,-505.01,0.0002081,2]
[349968499,1737540661687,-3644.17,0.0002081,2]
[349968500,1737540661696,-787.05,0.0002081,2]
[349968501,1737540661705,-1109.56,0.0002081,2]
[349968502,1737540661715,-500.0,0.0002081,2]
[349968503,1737540661724,-1436.75,0.0002081,2]
[349968504,1737540661849,-500.0,0.0002081,2]
[349968505,1737540661874,-1023.67,0.0002081,2]
[349968506,1737540661884,-2446.43,0.0002081,2]
[349968507,1737540661894,-1084.02,0.0002081,2]
[349968508,1737540661903,-500.0,0.0002081,2]
[349968509,1737540661913,-719.88,0.0002081,2]
[349968510,1737540661922,-1525.4,0.0002081,2]
[349968511,1737540661932,-566.9,0.0002081,2]
[349968512,1737540661945,-645.84,0.0002081,2]
[349968513,1737540661956,-877.13,0.0002081,2]
[349968514,1737540661966,-1063.0,0.0002081,2]
[349968515,1737540661975,-3701.78,0.0002081,2]
[349968516,1737540661985,-803.84,0.0002081,2]
[349968517,1737540661996,-2248.46,0.0002081,2]
[349968518,1737540662006,-1421.98,0.0002081,2]
[349968519,1737540662016,-500.0,0.0002081,2]
[349968520,1737540662026,-884.57,0.0002081,2]
[349968521,1737540662035,-1510.95,0.0002081,2]
[349968522,1737540662047,-2106.63,0.0002081,2]
[349968523,1737540662057,-500.0,0.0002081,2]
[349968524,1737540662067,-3108.21,0.0002081,2]
[349968525,1737540662076,-741.11,0.0002081,2]
[349968526,1737540662086,-999.0,0.0002081,2]
[349968527,1737540662095,-1044.82,0.0002081,2]
[349968528,1737540662104,-2339.65,0.0002081,2]
[349968529,1737540662113,-2293.73,0.0002081,2]
[349968530,1737540662123,-500.0,0.0002081,2]
[349968531,1737540662132,-500.0,0.0002081,2]
[349968532,1737540662141,-500.0,0.0002081,2]
[349968533,1737540662151,-983.86,0.0002081,2]
[349968534,1737540662161,-500.0,0.0002081,2]
[349968535,1737540662170,-759.65,0.0002081,2]
[349968536,1737540662179,-1127.53,0.0002081,2]
[349968537,1737540662189,-528.37,0.0002081,2]
[349968538,1737540662199,-500.0,0.0002081,2]
[349968539,1737540662209,-500.0,0.0002081,2]
[349968540,1737540662219,-500.0,0.0002081,2]
[349968541,1737540662228,-3748.63,0.0002081,2]
[349968542,1737540662238,-500.0,0.0002081,2]
[349968543,1737540662247,-2267.36,0.0002081,2]
[349968544,1737540662256,-500.0,0.0002081,2]
[349968545,1737540662265,-1360.93,0.0002081,2]
[349968546,1737540662274,-500.0,0.0002081,2]
[349968547,1737540662284,-644.83,0.0002081,2]
[349968548,1737540662295,-726.62,0.0002081,2]
[349968549,1737540662305,-612.88,0.0002081,2]
[349968550,1737540662315,-501.94,0.0002081,2]
[349968551,1737540662325,-500.0,0.0002081,2]
[349968552,1737540662336,-685.28,0.0002081,2]
[349968553,1737540662345,-1085.66,0.0002081,2]
[349968554,1737540662354,-564.68,0.0002081,2]
[349968555,1737540662363,-641.26,0.0002081,2]
[349968556,1737540662373,-539.19,0.0002081,2]
[349968557,1737540662382,-500.0,0.0002081,2]
[349968558,1737540662393,-500.0,0.0002081,2]
[349968559,1737540662402,-1392.41,0.0002081,2]
[349968560,1737540662412,-1687.59,0.0002081,2]
[349968561,1737540662421,-2762.75402317,0.00020811,2]
[349968562,1737540662431,-560.0,0.00020811,2]
[349968563,1737540662440,-610.48997718,0.00020811,2]
[349968564,1737540662449,-500.0,0.00020811,2]
[349968565,1737540662461,-500.0,0.00020811,2]
[349968566,1737540662472,-564.26,0.00020811,2]
[349968567,1737540662481,-522.81,0.00020811,2]
[349968568,1737540662490,-500.0,0.00020811,2]
[349968569,1737540662500,-500.0,0.00020811,2]
[349968570,1737540662510,-500.0,0.00020811,2]
[349968571,1737540662519,-500.0,0.00020811,2]
[349968572,1737540662528,-500.0,0.00020811,2]
[349968573,1737540662540,-500.0,0.00020811,2]
[349968574,1737540662549,-500.0,0.00020811,2]
[349968575,1737540662559,-585.01,0.00020811,2]
[349968576,1737540662567,-500.0,0.00020811,2]
[349968577,1737540662577,-500.0,0.00020811,2]
[349968578,1737540662586,-500.0,0.00020811,2]
[349968579,1737540662595,-514.03,0.00020811,2]
[349968580,1737540662604,-747.15,0.00020811,2]
[349968581,1737540662613,-500.0,0.00020811,2]
[349968582,1737540662622,-500.0,0.00020811,2]
[349968583,1737540662631,-500.0,0.00020811,2]
[349968584,1737540662640,-985.82,0.00020811,2]
[349968585,1737540662649,-500.0,0.00020811,2]
[349968586,1737540662658,-559.81,0.00020811,2]
[349968587,1737540662668,-680.04,0.00020811,2]
[349968588,1737540662677,-151.0,0.00020811,2]
[349968589,1737540662687,-418.21840016,0.00020811,2]
[349968590,1737540662695,-500.0,0.00020811,2]
[349968591,1737540662705,-520.45,0.00020811,2]
[349968592,1737540662714,-666.38,0.00020811,2]
[349968593,1737540662724,-500.0,0.00020811,2]
[349968594,1737540662733,-524.6,0.00020811,2]
[349968595,1737540662743,-700.02,0.00020811,2]
[349968596,1737540662752,-500.0,0.00020811,2]
[349968597,1737540662761,-500.0,0.00020811,2]
[349968598,1737540662771,-500.0,0.00020811,2]
[349968599,1737540662780,-409.48582879,0.00020811,2]
[349968600,1737540662790,-500.0,0.00020811,2]
[349968601,1737540662800,-883.64,0.00020811,2]
[349968602,1737540662810,-500.0,0.00020811,2]
[349968603,1737540662819,-531.28,0.00020811,2]
[349968604,1737540662829,-694.97,0.00020811,2]
[349968605,1737540662839,-880.33,0.00020811,2]
[349968606,1737540662848,-772.05,0.00020811,2]
[349968607,1737540662857,-958.39,0.00020811,2]
[349968608,1737540662866,-500.0,0.00020811,2]
[349968609,1737540662876,-500.0,0.00020811,2]
[349968610,1737540662886,-500.0,0.00020811,2]
[349968611,1737540662895,-500.0,0.00020811,2]
[349968612,1737540662905,-500.0,0.00020811,2]
[349968613,1737540662914,-926.48,0.00020811,2]
[349968614,1737540662924,-739.74,0.00020811,2]
[349968615,1737540662933,-1016.61,0.00020811,2]
[349968616,1737540662943,-863.66,0.00020811,2]
[349968617,1737540662953,-500.0,0.00020811,2]
[349968618,1737540662962,-500.0,0.00020811,2]
[349968619,1737540662972,-500.0,0.00020811,2]
[349968620,1737540662982,-500.0,0.00020811,2]
[349968621,1737540662992,-684.1,0.00020811,2]
[349968622,1737540663003,-500.0,0.00020811,2]
[349968623,1737540663012,-500.0,0.00020811,2]
[349968624,1737540663022,-783.89,0.00020811,2]
[349968625,1737540663031,-1891.18,0.00020811,2]
[349968626,1737540663040,-500.0,0.00020811,2]
[349968627,1737540663049,-2135.98,0.00020811,2]
[349968628,1737540663060,-159.08660486,0.00020811,2]
[349968629,1737540663071,-4371.9,0.00020811,2]
[349968630,1737540663080,-871.18,0.00020811,2]
[349968631,1737540663090,-7439.42,0.00020811,2]
[349968632,1737540663100,-500.0,0.00020811,2]
[349968633,1737540663110,-500.0,0.00020811,2]
[349968634,1737540663119,-1012.07,0.00020811,2]
[349968635,1737540663129,-500.0,0.00020811,2]
[349968636,1737540663138,-573.57,0.00020811,2]
[349968637,1737540663148,-828.83,0.00020811,2]
[349968638,1737540663158,-2274.94,0.00020811,2]
[349968639,1737540663167,-500.0,0.00020811,2]
[349968640,1737540663177,-929.42,0.00020811,2]
[349968641,1737540663187,-968.73,0.00020811,2]
[349968642,1737540663197,-500.0,0.00020811,2]
[349968643,1737540663208,-1200.39177194,0.00020811,2]
[349968644,1737540663676,-500.0,0.00019713,2]
[349968645,1737540663686,-291.99999997,0.00019714,2]
[349968646,1737540663745,-208.00000003,0.00019714,2]
[349968647,1737540663755,-500.0,0.00019714,2]
[349968648,1737540663765,-500.0,0.00019987,2]
[349968649,1737540663774,-433.19999996,0.00019988,2]
[349968650,1737540663786,-66.80000004,0.00019988,2]
[349968651,1737540663797,-191.46461996,0.00020261,2]
[349968652,1737540663809,-179.35520234,0.00020261,2]
[349968653,1737540663820,-500.0,0.00020262,2]
[349968654,1737540663830,-500.0,0.00020536,2]
[349968655,1737540663843,-92.31822806,0.00020811,2]
[349968656,1737540663852,-392.1125652,0.00020811,2]
[349968657,1737540663864,-1033.0274348,0.00020811,2]
[349968658,1737540663875,-620.67,0.00020811,2]
[349968659,1737540663885,-500.0,0.00020811,2]
[349968660,1737540663895,-569.3,0.00020811,2]
[349968661,1737540663905,-1000.0,0.00020811,2]
[349968662,1737540663915,-500.0,0.00020811,2]
[349968663,1737540663925,-705.73,0.00020811,2]
[349968664,1737540663934,-500.0,0.00020811,2]
[349968665,1737540663944,-341.262226,0.00020811,2]
[349968666,1737540663954,-341.262226,0.00020811,2]
[349968667,1737540663964,-2006.89,0.00020811,2]
[349968668,1737540663975,-558.32,0.00020811,2]
[349968669,1737540663985,-1665.09,0.00020811,2]
[349968670,1737540663995,-1069.91,0.00020811,2]
[349968671,1737540664006,-770.95,0.00020811,2]
[349968672,1737540664016,-704.34316535,0.00020811,2]
[349968673,1737540664343,150.0,0.00018,3]
[349968674,1737540664519,-500.0,0.00019439,2]
[349968675,1737540664529,-500.0,0.00019441,2]
[349968676,1737540664540,-378.22683465,0.00020811,2]
[349968677,1737540664550,-500.0,0.00020812,2]
[349968678,1737540664560,-289.28567345,0.00020812,2]
[349968679,1737540664694,-210.71432655,0.00020812,2]
[349968680,1737540664709,-790.56,0.00020812,2]
[349968681,1737540664730,-5.62960015,0.00020812,2]
[349968682,1737540664802,-73.426195,0.00020812,2]
[349968683,1737540664814,-420.94420485,0.00020812,2]
[349968684,1737540664825,-500.0,0.00020812,2]
[349968685,1737540664835,-107.46861419,0.00020812,2]
[349968686,1737540664852,-392.53138581,0.00020812,2]
[349968687,1737540664861,-141.49788919,0.00020814,2]
[349968688,1737540664875,-422.7577225,0.00020814,2]
[349968689,1737540664887,-286.60128449,0.00020814,2]
[349968690,1737540664896,-418.45071551,0.00020815,2]
[349968691,1737540664907,-225.82121952,0.00020815,2]
[349968692,1737540664917,-250.0,0.00020821,2]
[349968693,1737540664927,-9.77465388,0.00020822,2]
[349968694,1737540664939,-331.76436326,0.00020822,2]
[349968695,1737540664949,-225.32065174,0.00020822,2]
[349968696,1737540664961,-2131.1712885,0.00020822,2]
[349968697,1737540664971,-2762.75402317,0.0002083,2]
[349968698,1737540664980,-200.0,0.00020831,2]
[349968699,1737540664990,-850.85689618,0.00020833,2]
[349968700,1737540664999,-162026.9595347,0.00020834,2]
[349968701,1737540665102,-11753.12560802,0.00020834,2]
[349968702,1737540665116,-8002.666392,0.00020834,2]
[349968703,1737540665131,-18468.6961275,0.00020834,2]
[349968704,1737540665143,-15869.69942512,0.00020835,2]
[349968705,1737540665152,-200.0,0.00020842,2]
[349968706,1737540665162,-495.21439987,0.00020843,2]
[349968707,1737540665172,-495.21439987,0.00020845,2]
[349968708,1737540665181,-341.53901714,0.00020845,2]
[349968709,1737540665191,-200251.44766222,0.00020847,2]
[349968710,1737540665200,-17457.394593,0.00020851,2]
[349968711,1737540665209,-5639.88094003,0.00020854,2]
[349968712,1737540665219,-495.21439987,0.00020858,2]
[349968713,1737540665229,-5639.88094003,0.00020861,2]
[349968714,1737540665238,-850.85689618,0.00020862,2]
[349968715,1737540665248,-341.53901714,0.00020863,2]
[349968716,1737540665257,-200.0,0.00020865,2]
[349968717,1737540665266,-17457.394593,0.00020868,2]
[349968718,1737540665276,-27939.86342875,0.00020875,2]
[349968719,1737540665285,-17457.394593,0.00020881,2]
[349968720,1737540665295,-644.27193503,0.00020888,2]
[349968721,1737540665305,-15869.69942512,0.00020889,2]
[349968722,1737540665314,-2930.61904547,0.00020893,2]
[349968723,1737540665323,-2930.61904547,0.00020896,2]
[349968724,1737540665333,-644.27193503,0.000209,2]
[349968725,1737540665342,-160.605,0.000209,2]
[349968726,1737540665352,-200.0,0.000209,2]
[349968727,1737540665361,-200.0,0.00020904,2]
[349968728,1737540665371,-200.0,0.00020905,2]
[349968729,1737540665380,-5639.88094003,0.00020906,2]
[349968730,1737540665389,-27939.86342875,0.00020907,2]
[349968731,1737540665399,-186507.13626184,0.0002091,2]
[349968732,1737540665410,-12674.517128,0.0002091,2]
[349968733,1737540665632,-18000.20816387,0.0001934,2]
[349968734,1737540665643,-262.91500001,0.0001934,2]
[349968735,1737540665657,-865.22123301,0.0001934,2]
[349968736,1737540665667,-1941.69667165,0.0001934,2]
[349968737,1737540665680,-6431.23233146,0.0001934,2]
[349968738,1737540665690,-500.0,0.00019439,2]
[349968739,1737540665699,-192.62,0.00019713,2]
[349968740,1737540665709,-1069.79427238,0.0002091,2]
[349968741,1737540665718,-5143.28138385,0.00020912,2]
[349968742,1737540665727,-341.53901714,0.00020912,2]
[349968743,1737540665737,-200.0,0.00020914,2]
[349968744,1737540665746,-2762.75402317,0.00020914,2]
[349968745,1737540665758,-3841.03152935,0.00020916,2]
[349968748,1737541090037,211.1799988,0.00024,120]
[349968749,1737541437283,453.42687839,0.00024,120]
[349968750,1737541508377,48965.89,0.00012,2]
[349968751,1737541508406,10937.43611056,0.00012,2]
[349968752,1737541508437,5714.01768065,0.00012,2]
[349968753,1737541516468,156.78,0.00010137,2]
[349968755,1737541537136,-156.78,0.00016813,2]
[349968756,1737541537157,-464.27,0.00016912,2]
[349968757,1737541537179,-500.0,0.00018164,2]
[349968758,1737541537199,-200.0,0.00018433,2]
[349968759,1737541537220,-376.16,0.00018503,2]
[349968760,1737541537241,-250.0,0.0001855,2]
[349968761,1737541537263,-13421.45,0.00018732,2]
[349968762,1737541537284,-1000.0,0.00018821,2]
[349968763,1737541537305,-646.23,0.00018999,2]
[349968764,1737541537326,-10777.67630776,0.00019,2]
[349968765,1737541537347,-250.0,0.00019023,2]
[349968766,1737541537369,-223.54,0.00019036,2]
[349968767,1737541537390,-168.35,0.00019104,2]
[349968768,1737541537410,-464.27,0.00019176,2]
[349968769,1737541537430,-202.63,0.0001929,2]
[349968770,1737541537450,-11419.50154822,0.00019339,2]
[349968774,1737541546111,-184.9600567,0.00019339,2]
[349968775,1737541572506,10337.5956425,0.00018,3]
[349968776,1737541585404,-550.99181844,0.00016,2]
[349968777,1737541614421,-1097.47484614,0.000149,2]
[349968778,1737541633095,-500.0,0.00018164,2]
[349968779,1737541633116,-163.47,0.00018989,2]
[349968780,1737541633151,-864.49205268,0.0001924,2]
[349968781,1737541633176,-300.0,0.00019337,2]
[349968782,1737541633198,-14641.57759244,0.00019338,2]
[349968783,1737541633220,-6462.01949508,0.00019339,2]
[349968784,1737541633242,-1456.984,0.00019339,2]
[349968785,1737541633265,-685.32,0.00019339,2]
[349968786,1737541633292,-514.1,0.00019339,2]
[349968787,1737541633315,-500.0,0.00019339,2]
[349968788,1737541633336,-924.73,0.00019339,2]
[349968789,1737541633359,-500.0,0.00019339,2]
[349968790,1737541633382,-878.53,0.00019339,2]
[349968791,1737541633405,-2103.41,0.00019339,2]
[349968792,1737541633427,-500.0,0.00019339,2]
[349968793,1737541633449,-1188.12,0.00019339,2]
[349968794,1737541633470,-925.39,0.00019339,2]
[349968795,1737541633492,-1270.16,0.00019339,2]
[349968796,1737541633515,-1951.01,0.00019339,2]
[349968797,1737541633538,-500.0,0.00019339,2]
[349968798,1737541633560,-1477.82,0.00019339,2]
[349968799,1737541633583,-752.47,0.00019339,2]
[349968800,1737541633605,-683.57,0.00019339,2]
[349968801,1737541633629,-788.8507311,0.00019339,2]
[349968802,1737541653095,-5000.0,0.00019339,2]
[349968803,1737541653122,-1247.5292689,0.00019339,2]
[349968804,1737541653150,-2192.35,0.00019339,2]
[349968805,1737541653175,-796.17,0.00019339,2]
[349968806,1737541653198,-500.0,0.00019339,2]
[349968807,1737541653222,-500.0,0.00019339,2]
[349968808,1737541653245,-747.11,0.00019339,2]
[349968809,1737541653267,-500.0,0.00019339,2]
[349968810,1737541653291,-500.0,0.00019339,2]
[349968811,1737541653315,-2668.71,0.00019339,2]
[349968812,1737541653337,-1385.03,0.00019339,2]
[349968813,1737541653359,-472.8679265,0.00019339,2]
[349968814,1737541653381,-654.69,0.00019339,2]
[349968815,1737541653407,-605.93,0.00019339,2]
[349968816,1737541653431,-562.537247,0.00019339,2]
[349968817,1737541653471,-1545.87,0.00019339,2]
[349968818,1737541653504,-500.0,0.00019339,2]
[349968819,1737541653537,-1380.69,0.00019339,2]
[349968820,1737541653569,-907.88,0.00019339,2]
[349968821,1737541653605,-956.347784,0.00019339,2]
[349968822,1737541653636,-1850.42,0.00019339,2]
[349968823,1737541653667,-500.0,0.00019339,2]
[349968824,1737541653701,-1516.91,0.00019339,2]
[349968825,1737541653737,-953.88,0.00019339,2]
[349968826,1737541653783,-500.0,0.00019339,2]
[349968827,1737541653820,-150.99,0.00019339,2]
[349968828,1737541653856,-1314.05,0.00019339,2]
[349968829,1737541653890,-24850.0,0.0001934,14]
[349968830,1737541653923,-70523.32371663,0.0001934,2]
[349968838,1737541758769,-500.0,0.00018164,2]
[349968839,1737541758799,-459.94,0.00018908,2]
[349968840,1737541758823,-1013.98,0.00019339,2]
[349968841,1737541758847,-722.46,0.00019339,2]
[349968842,1737541758870,-1164.88,0.00019339,2]
[349968843,1737541758895,-1003.6,0.00019339,2]
[349968844,1737541758920,-621.14,0.00019339,2]
[349968848,1737541812471,186.15,0.00015115,2]
[349968860,1737541832781,-253.78,0.00019339,2]
[349968861,1737541832792,-27.21,0.00019339,2]
[349968862,1737541832801,-656.77,0.00019339,2]
[349968863,1737541832814,-19.15555873,0.00019339,2]
[349968864,1737541832826,-689.379689,0.00019339,2]
[349968865,1737541832838,-776.22475227,0.00019339,2]
[349968866,1737541832848,-444.61542855,0.00019339,2]
[349968867,1737541832860,-55.38457145,0.00019339,2]
[349968868,1737541832869,-362.68933005,0.00019339,2]
[349968869,1737541832998,-973.72066995,0.00019339,2]
[349968870,1737541833008,-2006.54,0.00019339,2]
[349968871,1737541833018,-500.0,0.00019339,2]
[349968872,1737541833027,-677.86,0.00019339,2]
[349968873,1737541833038,-886.2,0.00019339,2]
[349968874,1737541833049,-500.0,0.00019339,2]
[349968875,1737541833059,-2151.01,0.00019339,2]
[349968876,1737541833069,-3414.46,0.00019339,2]
[349968877,1737541833080,-2824.22,0.00019339,2]
[349968878,1737541833090,-841.92,0.00019339,2]
[349968879,1737541833100,-500.0,0.00019339,2]
[349968880,1737541833110,-944.29,0.00019339,2]
[349968881,1737541833120,-1011.31,0.00019339,2]
[349968882,1737541833130,-886.83,0.00019339,2]
[349968883,1737541833139,-1869.72,0.00019339,2]
[349968884,1737541833149,-3466.56,0.00019339,2]
[349968885,1737541833159,-500.0,0.00019339,2]
[349968887,1737541833169,-1416.25,0.00019339,2]
[349968889,1737541833179,-689.18,0.00019339,2]
[349968891,1737541833188,-1332.39,0.00019339,2]
[349968892,1737541833199,-2217.4,0.00019339,2]
[349968893,1737541833210,-806.82,0.00019339,2]
[349968894,1737541833221,-500.0,0.00019339,2]
[349968895,1737541833231,-500.0,0.00019339,2]
[349968896,1737541833242,-1001.78,0.00019339,2]
[349968897,1737541833252,-1215.48,0.00019339,2]
[349968898,1737541833262,-500.0,0.00019339,2]
[349968899,1737541833271,-2702.1,0.00019339,2]
[349968900,1737541833281,-369.638732,0.00019339,2]
[349968901,1737541833293,-465.931268,0.00019339,2]
[349968902,1737541833304,-2270.25928337,0.0001934,2]
[349968903,1737541833314,-316.9432,0.0001934,2]
[349968904,1737541833323,-613.257,0.0001934,2]
[349968906,1737541833332,-5538.54583514,0.0001934,2]
[349968909,1737541833344,-12206.37133272,0.0001934,2]
[349968920,1737541838183,-20995.40003443,0.0001934,2]
[349968921,1737541838238,-408.9983996,0.0001934,2]
[349968922,1737541838355,-77916.07342536,0.0001934,2]
[349968923,1737541838364,-294.0,0.0001934,2]
[349968924,1737541838373,-225.53301102,0.0001934,2]
[349968925,1737541838383,-30630.57522335,0.000194,2]
[349968926,1737541838392,-500.0,0.00019437,2]
[349968927,1737541838401,-778.51,0.00019437,2]
[349968928,1737541838410,-500.0,0.00019438,2]
[349968929,1737541838419,-500.0,0.00019438,2]
[349968930,1737541838428,-500.0,0.00019438,2]
[349968931,1737541838438,-655.58,0.00019438,2]
[349968932,1737541838447,-720.75,0.00019438,2]
[349968933,1737541838456,-500.0,0.00019438,2]
[349968934,1737541838466,-510.91,0.00019438,2]
[349968935,1737541838475,-500.0,0.00019438,2]
[349968936,1737541838484,-500.0,0.00019438,2]
[349968937,1737541838494,-500.0,0.00019438,2]
[349968938,1737541838503,-500.0,0.00019438,2]
[349968939,1737541838512,-589.74,0.00019438,2]
[349968940,1737541838522,-500.0,0.00019438,2]
[349968941,1737541838531,-419.0071705,0.00019438,2]
[349968942,1737541838540,-708.62,0.00019438,2]
[349968943,1737541838549,-500.0,0.00019438,2]
[349968944,1737541838558,-625.44,0.00019438,2]
[349968945,1737541838568,-500.0,0.00019438,2]
[349968946,1737541838577,-500.0,0.00019438,2]
[349968947,1737541838586,-500.0,0.00019438,2]
[349968948,1737541838596,-500.0,0.00019438,2]
[349968949,1737541838605,-500.0,0.00019438,2]
[349968950,1737541838614,-550.34,0.00019438,2]
[349968951,1737541838623,-500.0,0.00019438,2]
[349968952,1737541838632,-834.71,0.00019438,2]
[349968953,1737541838642,-500.0,0.00019438,2]
[349968954,1737541838651,-902.73,0.00019438,2]
[349968955,1737541838660,-872.01,0.00019438,2]
[349968956,1737541838670,-500.0,0.00019438,2]
[349968957,1737541838679,-500.0,0.00019438,2]
[349968958,1737541838689,-619.72,0.00019438,2]
[349968959,1737541838698,-500.0,0.00019438,2]
[349968961,1737541838707,-500.0,0.00019438,2]
[349968962,1737541838717,-876.53,0.00019438,2]
[349968963,1737541838726,-500.0,0.00019438,2]
[349968964,1737541838735,-613.46,0.00019438,2]
[349968965,1737541838745,-500.0,0.00019438,2]
[349968966,1737541838754,-500.0,0.00019438,2]
[349968967,1737541838763,-500.0,0.00019438,2]
[349968968,1737541838772,-500.0,0.00019438,2]
[349968969,1737541838781,-722.25,0.00019438,2]
[349968970,1737541838791,-500.0,0.00019438,2]
[349968971,1737541838800,-500.0,0.00019438,2]
[349968972,1737541838813,-668.05,0.00019438,2]
[349968973,1737541838824,-500.0,0.00019438,2]
[349968974,1737541838834,-675.35,0.00019438,2]
[349968975,1737541838843,-677.79,0.00019438,2]
[349968976,1737541838853,-544.94,0.00019438,2]
[349968977,1737541838863,-553.72,0.00019438,2]
[349968978,1737541838872,-603.56,0.00019438,2]
[349968979,1737541838882,-783.76,0.00019438,2]
[349968980,1737541838892,-500.0,0.00019438,2]
[349968981,1737541838902,-500.0,0.00019438,2]
[349968982,1737541838912,-575.54,0.00019438,2]
[349968983,1737541838921,-1909.22,0.00019438,2]
[349968984,1737541838930,-500.0,0.00019438,2]
[349968985,1737541838940,-1033.66,0.00019438,2]
[349968986,1737541838950,-500.0,0.00019438,2]
[349968987,1737541838959,-1473.85,0.00019438,2]
[349968988,1737541838969,-500.0,0.00019438,2]
[349968989,1737541838978,-500.0,0.00019438,2]
[349968990,1737541838988,-693.15,0.00019438,2]
[349968991,1737541838997,-500.0,0.00019438,2]
[349968992,1737541839007,-1568.94,0.00019438,2]
[349968993,1737541839017,-551.67,0.00019438,2]
[349968994,1737541839026,-500.0,0.00019438,2]
[349968995,1737541839036,-500.0,0.00019438,2]
[349968996,1737541839046,-3589.15,0.00019438,2]
[349968997,1737541839055,-638.09,0.00019438,2]
[349968998,1737541839066,-1417.99,0.00019438,2]
[349968999,1737541839076,-500.0,0.00019438,2]
[349969000,1737541839086,-2387.18,0.00019438,2]
[349969001,1737541839096,-3484.74,0.00019438,2]
[349969002,1737541839105,-1031.11,0.00019438,2]
[349969003,1737541839116,-500.0,0.00019438,2]
[349969004,1737541839126,-1387.85,0.00019438,2]
[349969005,1737541839137,-500.0,0.00019438,2]
[349969006,1737541839146,-500.0,0.00019438,2]
[349969007,1737541839156,-500.0,0.00019438,2]
[349969008,1737541839166,-500.0,0.00019438,2]
[349969009,1737541839175,-2015.76,0.00019438,2]
[349969010,1737541839185,-590.43,0.00019438,2]
[349969011,1737541839194,-500.0,0.00019438,2]
[349969012,1737541839203,-500.0,0.00019438,2]
[349969013,1737541839213,-2072.9,0.00019438,2]
[349969014,1737541839222,-500.0,0.00019438,2]
[349969015,1737541839231,-1138.61,0.00019438,2]
[349969016,1737541839241,-2193.32,0.00019438,2]
[349969017,1737541839250,-500.0,0.00019438,2]